[Event "EYCC Girls U10 2021"]
[Site "Tornelo"]
[Date "2021.10.15"]
[Round "7.9"]
[White "Kuznetsova, Ekaterina A"]
[Black "Huseynova, Dinara"]
[Result "1-0"]
[ECO "D10"]
[WhiteElo "1085"]
[BlackElo "1210"]
[Annotator "NA RC"]
[PlyCount "101"]
[EventDate "2021.10.15"]
[EventType "swiss"]
[EventCountry "NET"]
[SourceTitle "playchess.com"]
[Source "ChessBase"]
[SourceQuality "1"]
[TimeControl "5400+30"]

1. d4 {[%emt 0:00:30]} d5 {[%emt 0:00:33]} 2. c4 {[%emt 0:00:05]} c6 {[%emt 0:00:05]} 3. Nc3 {[%emt 0:00:05]} e5 {[%emt 0:00:06]} 4. e3 {[%emt 0:00:05]} exd4 {[%emt 0:00:04]} 5. Qxd4 {[%emt 0:00:05]} Nf6 {[%emt 0:00:50]} 6. Nf3 {[%emt 0:00:08]} Bb4 {[%emt 0:01:16]} 7. cxd5 {[%emt 0:09:31]} Bxc3+ {[%emt 0:00:23]} 8. Qxc3 {[%emt 0:00:09]} Qxd5 {[%emt 0:01:35]} 9. Bc4 {[%emt 0:00:57]} Qd8 {[%emt 0:02:41]} 10. O-O {[%emt 0:01:08]} O-O {[%emt 0:00:09]} 11. h3 {[%emt 0:00:29]} Bf5 {[%emt 0:02:28]} 12. Qb3 {[%emt 0:00:45]} Qb6 {[%emt 0:02:11]} 13. Qc3 {[%emt 0:13:05]} Nbd7 {[%emt 0:03:16]} 14. Rd1 {[%emt 0:05:09]} Rad8 {[%emt 0:05:58]} 15. Nd4 {[%emt 0:04:19]} Ne5 {[%emt 0:07:04]} 16. Bb3 {[%emt 0:03:28]} Bg6 {[%emt 0:02:55]} 17. f4 {[%emt 0:03:56]} c5 {[%emt 0:00:53]} 18. fxe5 {[%emt 0:02:23]} cxd4 {[%emt 0:00:03]} 19. exd4 {[%emt 0:00:11]} Nd5 {[%emt 0:00:48]} 20. Qf3 {[%emt 0:01:22]} Ne7 {[%emt 0:00:20]} 21. Be3 {[%emt 0:00:36]} Nf5 {[%emt 0:00:13]} 22. Qf4 {[%emt 0:01:11]} Nxe3 {[%emt 0:00:37]} 23. Qxe3 {[%emt 0:00:14]} Kh8 {[%emt 0:03:37]} 24. Qf2 {[%emt 0:04:24]} Be4 {[%emt 0:01:27]} 25. d5 {[%emt 0:04:08]} Qxf2+ {[%emt 0:00:26]} 26. Kxf2 {[%emt 0:00:06]} Rfe8 {[%emt 0:00:08]} 27. e6 {[%emt 0:01:17]} fxe6 {[%emt 0:00:13]} 28. dxe6 {[%emt 0:00:12]} Rxd1 {[%emt 0:00:32]} 29. Rxd1 {[%emt 0:00:05]} Bc6 {[%emt 0:00:23]} 30. Re1 {[%emt 0:00:25]} Re7 {[%emt 0:00:14]} 31. Kg3 {[%emt 0:02:30]} Kg8 {[%emt 0:00:07]} 32. Rf1 {[%emt 0:00:08]} Be4 {[%emt 0:01:09]} 33. Rf2 {[%emt 0:01:12]} g6 {[%emt 0:00:18]} 34. Kf4 {[%emt 0:00:12]} Bc6 {[%emt 0:00:16]} 35. Ke5 {[%emt 0:00:13]} Kg7 {[%emt 0:03:43]} 36. Kd6 {[%emt 0:00:35]} Re8 {[%emt 0:00:11]} 37. e7 {[%emt 0:00:38]} h6 {[%emt 0:00:59]} 38. Rf7+ {[%emt 0:00:27]} Kh8 {[%emt 0:00:11]} 39. Rf8+ {[%emt 0:00:21]} Kg7 {[%emt 0:00:06]} 40. Rxe8 {[%emt 0:00:38]} Bxe8 {[%emt 0:00:03]} 41. Kc7 {[%emt 0:00:06]} b5 {[%emt 0:00:57]} 42. Kd8 {[%emt 0:00:14]} Bc6 {[%emt 0:00:37]} 43. Bd5 {[%emt 0:00:10]} Bxd5 {[%emt 0:00:28]} 44. e8=Q {[%emt 0:00:06]} Bxg2 {[%emt 0:00:11]} 45. Qe7+ {[%emt 0:00:45]} Kg8 {[%emt 0:00:04]} 46. Qxa7 {[%emt 0:00:39]} Bxh3 {[%emt 0:00:15]} 47. Ke8 {[%emt 0:00:58]} Be6 {[%emt 0:00:15]} 48. Qe7 {[%emt 0:00:49]} Bxa2 {[%emt 0:00:08]} 49. Qf8+ {[%emt 0:00:11]} Kh7 {[%emt 0:00:03]} 50. Ke7 {[%emt 0:00:07]} g5 {[%emt 0:05:23]} 51. Kf6 {[%emt 0:00:12]} 1-0

[Event "EYCC Girls U10 2021"]
[Site "Tornelo"]
[Date "2021.10.15"]
[Round "7.11"]
[White "Figa, Karolina"]
[Black "Ashton, Alannah"]
[Result "1-0"]
[ECO "A59"]
[WhiteElo "1411"]
[BlackElo "1294"]
[Annotator "NA RC"]
[PlyCount "91"]
[EventDate "2021.10.15"]
[EventType "swiss"]
[EventCountry "NET"]
[SourceTitle "playchess.com"]
[Source "ChessBase"]
[SourceQuality "1"]
[TimeControl "5400+30"]

1. d4 {[%emt 0:00:30]} Nf6 {[%emt 0:00:36]} 2. c4 {[%emt 0:00:24]} c5 {[%emt 0:00:03]} 3. d5 {[%emt 0:00:07]} b5 {[%emt 0:00:04]} 4. cxb5 {[%emt 0:00:08]} a6 {[%emt 0:00:04]} 5. bxa6 {[%emt 0:00:06]} g6 {[%emt 0:00:03]} 6. Nc3 {[%emt 0:00:14]} Bxa6 {[%emt 0:00:05]} 7. e4 {[%emt 0:00:13]} Bxf1 {[%emt 0:00:05]} 8. Kxf1 {[%emt 0:00:08]} d6 {[%emt 0:00:30]} 9. g3 {[%emt 0:01:59]} Bg7 {[%emt 0:00:11]} 10. Kg2 {[%emt 0:00:12]} O-O {[%emt 0:00:06]} 11. Nf3 {[%emt 0:00:12]} Nbd7 {[%emt 0:00:14]} 12. Qc2 {[%emt 0:05:08]} Ra6 {[%emt 0:00:54]} 13. Nb5 {[%emt 0:01:26]} Qa5 {[%emt 0:03:36]} 14. a4 {[%emt 0:02:00]} Rb8 {[%emt 0:04:10]} 15. Bd2 {[%emt 0:03:53]} Qd8 {[%emt 0:01:17]} 16. Bc3 {[%emt 0:05:41]} Rb7 {[%emt 0:05:46]} 17. b3 {[%emt 0:01:21]} Qa8 {[%emt 0:01:43]} 18. Rhb1 {[%emt 0:05:27]} c4 {[%emt 0:03:01]} 19. b4 {[%emt 0:13:07]} Nb6 {[%emt 0:06:52]} 20. Nbd4 {[%emt 0:03:00]} Nxa4 {[%emt 0:04:43]} 21. Bd2 {[%emt 0:07:48]} Nb6 {[%emt 0:10:27]} 22. Rxa6 {[%emt 0:02:56]} Qxa6 {[%emt 0:00:54]} 23. Bc3 {[%emt 0:05:18]} Rc7 {[%emt 0:03:41]} 24. Ra1 {[%emt 0:02:42]} Qc8 {[%emt 0:00:58]} 25. Nc6 {[%emt 0:00:36]} e6 {[%emt 0:01:51]} 26. Qb2 {[%emt 0:01:03]} Ne8 {[%emt 0:09:44]} 27. Bxg7 {[%emt 0:01:19]} Nxg7 {[%emt 0:00:09]} 28. Qf6 {[%emt 0:00:17]} Qe8 {[%emt 0:02:16]} 29. b5 {[%emt 0:04:13]} exd5 {[%emt 0:06:40]} 30. Qxd6 {[%emt 0:04:52]} Rd7 {[%emt 0:01:22]} 31. Qc5 {[%emt 0:00:34]} dxe4 {[%emt 0:06:07]} 32. Nfe5 {[%emt 0:00:41]} Rb7 {[%emt 0:01:47]} 33. Ra6 {[%emt 0:04:09]} Ne6 {[%emt 0:01:16]} 34. Qd6 {[%emt 0:01:40]} c3 {[%emt 0:03:55]} 35. Ra2 {[%emt 0:03:33]} f6 {[%emt 0:04:20]} 36. Ng4 {[%emt 0:01:14]} Kf7 {[%emt 0:06:09]} 37. Rc2 {[%emt 0:04:36]} Rd7 {[%emt 0:00:59]} 38. Nce5+ {[%emt 0:01:13]} fxe5 {[%emt 0:01:52]} 39. Nxe5+ {[%emt 0:00:41]} Kf6 {[%emt 0:00:39]} 40. Ng4+ {[%emt 0:01:07]} Kg7 {[%emt 0:01:10]} 41. Qxb6 {[%emt 0:01:20]} Rd3 {[%emt 0:01:48]} 42. Qb7+ {[%emt 0:01:25]} Qf7 {[%emt 0:00:38]} 43. Qxf7+ {[%emt 0:00:20]} Kxf7 {[%emt 0:00:06]} 44. Ne5+ {[%emt 0:00:06]} Kf6 {[%emt 0:00:03]} 45. Nxd3 {[%emt 0:00:07]} exd3 {[%emt 0:00:05]} 46. Rxc3 {[%emt 0:00:06]} 1-0

[Event "EYCC Girls U10 2021"]
[Site "Tornelo"]
[Date "2021.10.15"]
[Round "7.12"]
[White "Vujovic, Vera"]
[Black "Sunea, Sara Maria"]
[Result "0-1"]
[ECO "B33"]
[WhiteElo "1267"]
[BlackElo "1342"]
[Annotator "NA RC"]
[PlyCount "146"]
[EventDate "2021.10.15"]
[EventType "swiss"]
[EventCountry "NET"]
[SourceTitle "playchess.com"]
[Source "ChessBase"]
[SourceQuality "1"]
[TimeControl "5400+30"]

1. e4 {[%emt 0:00:30]} c5 {[%emt 0:00:45]} 2. Nf3 {[%emt 0:00:18]} Nc6 {[%emt 0:00:14]} 3. d4 {[%emt 0:00:26]} cxd4 {[%emt 0:00:08]} 4. Nxd4 {[%emt 0:00:31]} Nf6 {[%emt 0:00:17]} 5. Nc3 {[%emt 0:00:26]} e5 {[%emt 0:00:19]} 6. Ndb5 {[%emt 0:00:33]} d6 {[%emt 0:00:16]} 7. Bg5 {[%emt 0:00:50]} a6 {[%emt 0:00:15]} 8. Na3 {[%emt 0:00:18]} b5 {[%emt 0:00:11]} 9. Nd5 {[%emt 0:02:29]} Be7 {[%emt 0:00:15]} 10. Nxf6+ {[%emt 0:01:09]} Bxf6 {[%emt 0:00:29]} 11. Bxf6 {[%emt 0:00:13]} Qxf6 {[%emt 0:00:23]} 12. Qd2 {[%emt 0:03:36]} O-O {[%emt 0:01:37]} 13. O-O-O {[%emt 0:00:09]} Rd8 {[%emt 0:04:18]} 14. f3 {[%emt 0:23:55]} Be6 {[%emt 0:02:39]} 15. c4 {[%emt 0:01:23]} Nd4 {[%emt 0:10:20]} 16. b3 {[%emt 0:07:08]} Rdc8 {[%emt 0:15:37]} 17. Qe3 {[%emt 0:15:04]} bxc4 {[%emt 0:07:23]} 18. Bxc4 {[%emt 0:00:29]} a5 {[%emt 0:01:31]} 19. Kb2 {[%emt 0:03:32]} Rab8 {[%emt 0:08:04]} 20. Rc1 {[%emt 0:07:40]} a4 {[%emt 0:11:28]} 21. Rc3 {[%emt 0:00:18]} Bxc4 {[%emt 0:01:50]} 22. Nxc4 {[%emt 0:00:09]} Qe6 {[%emt 0:01:29]} 23. Rhc1 {[%emt 0:02:21]} axb3 {[%emt 0:05:47]} 24. axb3 {[%emt 0:00:06]} Rc5 {[%emt 0:01:44]} 25. Nd2 {[%emt 0:02:07]} Rcb5 {[%emt 0:03:51]} 26. Qd3 {[%emt 0:00:38]} h6 {[%emt 0:02:53]} 27. Qc4 {[%emt 0:00:18]} Qg6 {[%emt 0:03:41]} 28. Qf1 {[%emt 0:00:20]} Qg5 {[%emt 0:01:41]} 29. Rc8+ {[%emt 0:00:06]} Kh7 {[%emt 0:00:22]} 30. Qd1 {[%emt 0:02:44]} Qxg2 {[%emt 0:01:33]} 31. Rxb8 {[%emt 0:01:16]} Rxb8 {[%emt 0:00:12]} 32. Rc3 {[%emt 0:03:00]} Qxh2 {[%emt 0:00:43]} 33. Kb1 {[%emt 0:00:56]} Qe2 {[%emt 0:00:49]} 34. Qxe2 {[%emt 0:00:25]} Nxe2 {[%emt 0:00:08]} 35. Rc7 {[%emt 0:00:07]} Nd4 {[%emt 0:00:38]} 36. Kb2 {[%emt 0:00:43]} Kg6 {[%emt 0:00:18]} 37. Rd7 {[%emt 0:00:23]} Rb6 {[%emt 0:00:18]} 38. Ka2 {[%emt 0:01:16]} Rc6 {[%emt 0:01:29]} 39. Nc4 {[%emt 0:00:28]} Nb5 {[%emt 0:01:18]} 40. Rb7 {[%emt 0:00:28]} Nc3+ {[%emt 0:00:51]} 41. Kb2 {[%emt 0:00:14]} Na4+ {[%emt 0:00:16]} 42. Ka3 {[%emt 0:04:00]} Nc5 {[%emt 0:02:19]} 43. Rb5 {[%emt 0:00:17]} h5 {[%emt 0:00:53]} 44. Nxd6 {[%emt 0:02:08]} Ra6+ {[%emt 0:00:58]} 45. Kb4 {[%emt 0:00:07]} Nd3+ {[%emt 0:00:19]} 46. Kc3 {[%emt 0:00:09]} Rxd6 {[%emt 0:00:11]} 47. Ra5 {[%emt 0:00:08]} h4 {[%emt 0:00:22]} 48. Ra2 {[%emt 0:00:06]} Nf4 {[%emt 0:00:18]} 49. b4 {[%emt 0:00:11]} Rc6+ {[%emt 0:00:23]} 50. Kb3 {[%emt 0:00:15]} Nd3 {[%emt 0:00:13]} 51. b5 {[%emt 0:00:19]} Rc5 {[%emt 0:01:23]} 52. Ka4 {[%emt 0:01:55]} Rc8 {[%emt 0:00:26]} 53. Rh2 {[%emt 0:00:10]} Kh5 {[%emt 0:00:20]} 54. b6 {[%emt 0:00:10]} Rb8 {[%emt 0:00:30]} 55. Kb5 {[%emt 0:00:06]} Nb4 {[%emt 0:02:17]} 56. Rh3 {[%emt 0:00:55]} g5 {[%emt 0:00:21]} 57. Kxb4 {[%emt 0:00:42]} Rxb6+ {[%emt 0:00:12]} 58. Kc5 {[%emt 0:00:04]} Re6 {[%emt 0:00:35]} 59. Kd5 {[%emt 0:00:06]} g4 {[%emt 0:00:21]} 60. fxg4+ {[%emt 0:00:07]} Kxg4 {[%emt 0:00:12]} 61. Ra3 {[%emt 0:00:06]} h3 {[%emt 0:00:27]} 62. Ra7 {[%emt 0:00:07]} h2 {[%emt 0:00:32]} 63. Rxf7 {[%emt 0:00:05]} Rh6 {[%emt 0:00:13]} 64. Rf1 {[%emt 0:00:08]} Rh5 {[%emt 0:00:25]} 65. Ra1 {[%emt 0:00:12]} Kf4 {[%emt 0:00:16]} 66. Rf1+ {[%emt 0:00:04]} Kg3 {[%emt 0:00:28]} 67. Ra1 {[%emt 0:00:08]} Kf3 {[%emt 0:00:33]} 68. Rf1+ {[%emt 0:00:27]} Kg2 {[%emt 0:00:18]} 69. Re1 {[%emt 0:00:10]} h1=Q {[%emt 0:00:11]} 70. Rxh1 {[%emt 0:00:03]} Kxh1 {[%emt 0:00:06]} 71. Kc4 {[%emt 0:00:05]} Kg2 {[%emt 0:00:10]} 72. Kc5 {[%emt 0:00:04]} Kf3 {[%emt 0:00:12]} 73. Kd5 {[%emt 0:00:05]} Rg5 {[%emt 0:00:04]} 0-1

[Event "EYCC Girls U10 2021"]
[Site "Tornelo"]
[Date "2021.10.15"]
[Round "8.1"]
[White "Preobrazhenskaya, Diana"]
[Black "Asachenko, Ksenia"]
[Result "1-0"]
[ECO "B84"]
[WhiteElo "1764"]
[BlackElo "1382"]
[Annotator "NA"]
[PlyCount "57"]
[EventDate "2021.10.15"]
[EventType "swiss"]
[EventCountry "NET"]
[SourceTitle "playchess.com"]
[Source "ChessBase"]
[SourceQuality "1"]
[TimeControl "5400+30"]

1. e4 {[%emt 0:00:30]} c5 {[%emt 0:00:34]} 2. Nf3 {[%emt 0:00:06]} d6 {[%emt 0:00:04]} 3. d4 {[%emt 0:00:25]} cxd4 {[%emt 0:00:02]} 4. Nxd4 {[%emt 0:00:09]} Nf6 {[%emt 0:00:03]} 5. Nc3 {[%emt 0:00:06]} a6 {[%emt 0:00:03]} 6. Be2 {[%emt 0:01:38]} Nbd7 {[%emt 0:00:15]} 7. Be3 {[%emt 0:02:38]} e6 {[%emt 0:00:26]} 8. O-O {[%emt 0:01:03]} Be7 {[%emt 0:03:42]} 9. f4 {[%emt 0:04:10]} Qc7 {[%emt 0:15:34]} 10. Bf3 {[%emt 0:02:54]} Rb8 {[%emt 0:05:47]} 11. Qe2 {[%emt 0:11:34]} O-O {[%emt 0:09:36]} 12. Rae1 {[%emt 0:01:07]} b5 {[%emt 0:01:48]} 13. e5 {[%emt 0:13:02]} Nd5 {[%emt 0:17:53]} 14. Bxd5 {[%emt 0:01:16]} Bh4 {[%emt 0:06:47]} 15. g3 {[%emt 0:03:38]} exd5 {[%emt 0:06:58]} 16. gxh4 {[%emt 0:00:53]} dxe5 {[%emt 0:03:11]} 17. Nxd5 {[%emt 0:04:44]} Qb7 {[%emt 0:05:32]} 18. Nc6 {[%emt 0:01:51]} Ra8 {[%emt 0:00:56]} 19. fxe5 {[%emt 0:03:35]} Kh8 {[%emt 0:04:29]} 20. Nde7 {[%emt 0:02:03]} Nxe5 {[%emt 0:05:40]} 21. Qh5 {[%emt 0:01:45]} Bh3 {[%emt 0:03:32]} 22. Qxe5 {[%emt 0:01:02]} Bxf1 {[%emt 0:01:00]} 23. Rxf1 {[%emt 0:00:04]} f6 {[%emt 0:02:40]} 24. Qh5 {[%emt 0:00:24]} Rfe8 {[%emt 0:01:34]} 25. Ng6+ {[%emt 0:00:38]} Kg8 {[%emt 0:00:05]} 26. Qd5+ {[%emt 0:00:07]} Qf7 {[%emt 0:00:19]} 27. Nce7+ {[%emt 0:00:18]} Rxe7 {[%emt 0:00:12]} 28. Nxe7+ {[%emt 0:00:03]} Kf8 {[%emt 0:00:30]} 29. Qxa8+ {[%emt 0:00:04]} 1-0

[Event "EYCC Girls U10 2021"]
[Site "Tornelo"]
[Date "2021.10.15"]
[Round "8.2"]
[White "Blinova, Sofia"]
[Black "Aydogan, Arya"]
[Result "1/2-1/2"]
[ECO "C50"]
[WhiteElo "1297"]
[BlackElo "1250"]
[Annotator "NA"]
[PlyCount "71"]
[EventDate "2021.10.15"]
[EventType "swiss"]
[EventCountry "NET"]
[SourceTitle "playchess.com"]
[Source "ChessBase"]
[SourceQuality "1"]
[TimeControl "5400+30"]

1. e4 {[%emt 0:00:30]} e5 {[%emt 0:00:34]} 2. Nf3 {[%emt 0:00:03]} Nc6 {[%emt 0:00:03]} 3. Bc4 {[%emt 0:00:06]} Bc5 {[%emt 0:00:11]} 4. d3 {[%emt 0:00:32]} Nf6 {[%emt 0:01:20]} 5. Bg5 {[%emt 0:00:19]} h6 {[%emt 0:04:35]} 6. Bh4 {[%emt 0:00:11]} d6 {[%emt 0:01:39]} 7. h3 {[%emt 0:00:32]} Be6 {[%emt 0:05:01]} 8. Bb3 {[%emt 0:02:38]} Qd7 {[%emt 0:05:18]} 9. Nc3 {[%emt 0:01:56]} O-O-O {[%emt 0:08:17]} 10. Qd2 {[%emt 0:01:09]} Rde8 {[%emt 0:02:42]} 11. O-O-O {[%emt 0:01:18]} g5 {[%emt 0:02:35]} 12. Bg3 {[%emt 0:00:44]} Nh5 {[%emt 0:04:54]} 13. Nd5 {[%emt 0:02:52]} Ne7 {[%emt 0:05:00]} 14. Qa5 {[%emt 0:07:04]} Bxd5 {[%emt 0:11:08]} 15. exd5 {[%emt 0:00:54]} Bb6 {[%emt 0:00:50]} 16. Qb4 {[%emt 0:00:59]} Qf5 {[%emt 0:03:04]} 17. a4 {[%emt 0:05:19]} Nf4 {[%emt 0:03:21]} 18. Bxf4 {[%emt 0:03:05]} Qxf4+ {[%emt 0:00:48]} 19. Qxf4 {[%emt 0:00:06]} gxf4 {[%emt 0:00:17]} 20. d4 {[%emt 0:00:44]} f6 {[%emt 0:01:20]} 21. g4 {[%emt 0:03:17]} fxg3 {[%emt 0:05:33]} 22. fxg3 {[%emt 0:00:18]} Nf5 {[%emt 0:00:29]} 23. g4 {[%emt 0:01:13]} Nxd4 {[%emt 0:04:46]} 24. Nxd4 {[%emt 0:00:17]} Bxd4 {[%emt 0:00:09]} 25. c3 {[%emt 0:00:30]} Be3+ {[%emt 0:00:47]} 26. Kc2 {[%emt 0:00:04]} Ref8 {[%emt 0:04:42]} 27. Kd3 {[%emt 0:00:58]} Bf4 {[%emt 0:00:43]} 28. Ke4 {[%emt 0:00:17]} Rhg8 {[%emt 0:03:08]} 29. Bc2 {[%emt 0:01:20]} Kd7 {[%emt 0:02:45]} 30. Kf3 {[%emt 0:01:29]} Ke7 {[%emt 0:00:41]} 31. Bf5 {[%emt 0:00:25]} a5 {[%emt 0:04:31]} 32. Rhe1 {[%emt 0:00:50]} b6 {[%emt 0:02:43]} 33. Rd4 {[%emt 0:00:35]} Bg5 {[%emt 0:01:00]} 34. Rc4 {[%emt 0:00:13]} Kd8 {[%emt 0:01:17]} 35. b4 {[%emt 0:03:17]} c5 {[%emt 0:02:10]} 36. b5 {[%emt 0:03:30]} 1/2-1/2

[Event "EYCC Girls U10 2021"]
[Site "Tornelo"]
[Date "2021.10.15"]
[Round "8.4"]
[White "Zhou, Leyi Charlotte"]
[Black "Gratskova, Anastasia"]
[Result "0-1"]
[ECO "C01"]
[WhiteElo "1199"]
[BlackElo "1313"]
[Annotator "NA"]
[PlyCount "72"]
[EventDate "2021.10.15"]
[EventType "swiss"]
[EventCountry "NET"]
[SourceTitle "playchess.com"]
[Source "ChessBase"]
[SourceQuality "1"]
[TimeControl "5400+30"]

1. e4 {[%emt 0:00:30]} e6 {[%emt 0:00:39]} 2. d4 {[%emt 0:00:38]} d5 {[%emt 0:00:06]} 3. exd5 {[%emt 0:01:47]} exd5 {[%emt 0:00:07]} 4. Nf3 {[%emt 0:01:18]} Bg4 {[%emt 0:00:14]} 5. Nc3 {[%emt 0:00:41]} Nc6 {[%emt 0:04:43]} 6. Be2 {[%emt 0:01:10]} Bb4 {[%emt 0:01:13]} 7. O-O {[%emt 0:02:44]} Nge7 {[%emt 0:03:45]} 8. h3 {[%emt 0:01:57]} Bh5 {[%emt 0:08:25]} 9. Bf4 {[%emt 0:02:45]} Bd6 {[%emt 0:01:54]} 10. Bd2 {[%emt 0:02:00]} a6 {[%emt 0:01:50]} 11. Re1 {[%emt 0:00:50]} O-O {[%emt 0:00:48]} 12. Bd3 {[%emt 0:08:17]} h6 {[%emt 0:14:48]} 13. Be2 {[%emt 0:12:03]} f5 {[%emt 0:08:15]} 14. Qc1 {[%emt 0:07:01]} Kh7 {[%emt 0:03:12]} 15. Ng5+ {[%emt 0:02:57]} hxg5 {[%emt 0:00:06]} 16. Bxh5 {[%emt 0:00:12]} g6 {[%emt 0:01:16]} 17. Bf3 {[%emt 0:01:42]} Nxd4 {[%emt 0:01:43]} 18. Bxd5 {[%emt 0:05:43]} Nxd5 {[%emt 0:00:42]} 19. Nxd5 {[%emt 0:00:17]} f4 {[%emt 0:01:24]} 20. h4 {[%emt 0:04:35]} c6 {[%emt 0:01:55]} 21. Nc3 {[%emt 0:01:58]} gxh4 {[%emt 0:03:52]} 22. Re4 {[%emt 0:00:52]} Qf6 {[%emt 0:01:43]} 23. Ne2 {[%emt 0:05:03]} Nxe2+ {[%emt 0:00:23]} 24. Rxe2 {[%emt 0:00:07]} Rae8 {[%emt 0:02:47]} 25. Rxe8 {[%emt 0:01:52]} Rxe8 {[%emt 0:00:08]} 26. Bc3 {[%emt 0:00:11]} Be5 {[%emt 0:02:07]} 27. Qd2 {[%emt 0:01:51]} Bxc3 {[%emt 0:00:36]} 28. bxc3 {[%emt 0:00:29]} g5 {[%emt 0:03:43]} 29. Rb1 {[%emt 0:01:25]} Re7 {[%emt 0:00:23]} 30. Qd3+ {[%emt 0:00:43]} Kh6 {[%emt 0:00:55]} 31. Qd8 {[%emt 0:01:23]} Re1+ {[%emt 0:00:17]} 32. Rxe1 {[%emt 0:01:13]} Qxd8 {[%emt 0:00:05]} 33. Re6+ {[%emt 0:00:21]} Kg7 {[%emt 0:00:12]} 34. Re1 {[%emt 0:00:59]} Kf6 {[%emt 0:00:14]} 35. Rb1 {[%emt 0:00:14]} b5 {[%emt 0:00:06]} 36. Kf1 {[%emt 0:00:25]} Qd2 {[%emt 0:00:09]} 0-1

[Event "EYCC Girls U10 2021"]
[Site "Tornelo"]
[Date "2021.10.15"]
[Round "8.5"]
[White "Semenova, Vasilisa"]
[Black "Kuznetsova, Ekaterina A"]
[Result "1-0"]
[ECO "E34"]
[WhiteElo "1305"]
[BlackElo "1085"]
[Annotator "NA"]
[PlyCount "133"]
[EventDate "2021.10.15"]
[EventType "swiss"]
[EventCountry "NET"]
[SourceTitle "playchess.com"]
[Source "ChessBase"]
[SourceQuality "1"]
[TimeControl "5400+30"]

1. d4 {[%emt 0:00:30]} Nf6 {[%emt 0:00:37]} 2. c4 {[%emt 0:00:05]} e6 {[%emt 0:00:04]} 3. Nc3 {[%emt 0:00:05]} Bb4 {[%emt 0:00:03]} 4. Qc2 {[%emt 0:00:03]} d5 {[%emt 0:00:09]} 5. Bg5 {[%emt 0:00:07]} dxc4 {[%emt 0:00:04]} 6. e3 {[%emt 0:00:05]} Qd5 {[%emt 0:08:23]} 7. Bxf6 {[%emt 0:00:13]} gxf6 {[%emt 0:00:07]} 8. a3 {[%emt 0:00:32]} Bxc3+ {[%emt 0:06:06]} 9. Qxc3 {[%emt 0:00:24]} b5 {[%emt 0:00:37]} 10. a4 {[%emt 0:00:12]} c6 {[%emt 0:02:51]} 11. axb5 {[%emt 0:00:12]} cxb5 {[%emt 0:00:12]} 12. b3 {[%emt 0:00:34]} Ba6 {[%emt 0:13:49]} 13. Be2 {[%emt 0:00:41]} Qd7 {[%emt 0:10:57]} 14. Bf3 {[%emt 0:00:24]} Bb7 {[%emt 0:00:27]} 15. bxc4 {[%emt 0:00:15]} Bxf3 {[%emt 0:00:49]} 16. Nxf3 {[%emt 0:00:08]} bxc4 {[%emt 0:00:06]} 17. Qxc4 {[%emt 0:00:21]} Qc6 {[%emt 0:02:03]} 18. Qxc6+ {[%emt 0:00:52]} Nxc6 {[%emt 0:00:05]} 19. O-O {[%emt 0:00:05]} O-O {[%emt 0:00:20]} 20. Rfc1 {[%emt 0:00:06]} Ne7 {[%emt 0:00:19]} 21. Rc7 {[%emt 0:00:09]} Nd5 {[%emt 0:00:14]} 22. Rcxa7 {[%emt 0:00:07]} Rxa7 {[%emt 0:00:13]} 23. Rxa7 {[%emt 0:00:04]} Rc8 {[%emt 0:00:04]} 24. h3 {[%emt 0:02:03]} Rc1+ {[%emt 0:00:27]} 25. Kh2 {[%emt 0:00:05]} Rc2 {[%emt 0:00:36]} 26. Kg3 {[%emt 0:00:06]} Kg7 {[%emt 0:00:13]} 27. Ne1 {[%emt 0:00:41]} Rc3 {[%emt 0:01:58]} 28. Ra2 {[%emt 0:00:40]} Nb4 {[%emt 0:00:39]} 29. Rb2 {[%emt 0:00:20]} Nd3 {[%emt 0:01:23]} 30. Nxd3 {[%emt 0:00:22]} Rxd3 {[%emt 0:00:03]} 31. Kf3 {[%emt 0:00:05]} Ra3 {[%emt 0:00:41]} 32. Rb5 {[%emt 0:01:33]} Kg6 {[%emt 0:00:18]} 33. g4 {[%emt 0:01:02]} Ra1 {[%emt 0:00:21]} 34. Rb3 {[%emt 0:18:25]} Ra4 {[%emt 0:00:29]} 35. Rd3 {[%emt 0:01:13]} Ra5 {[%emt 0:01:35]} 36. e4 {[%emt 0:00:17]} e5 {[%emt 0:00:46]} 37. d5 {[%emt 0:00:09]} Ra7 {[%emt 0:00:08]} 38. Ke2 {[%emt 0:00:21]} Kg5 {[%emt 0:00:21]} 39. d6 {[%emt 0:00:27]} Rd7 {[%emt 0:00:09]} 40. Kd2 {[%emt 0:01:19]} Kf4 {[%emt 0:00:15]} 41. f3 {[%emt 0:00:12]} Kg3 {[%emt 0:01:08]} 42. Kc3 {[%emt 0:00:06]} Kf2 {[%emt 0:00:31]} 43. h4 {[%emt 0:00:58]} Ke2 {[%emt 0:02:12]} 44. Kc4 {[%emt 0:00:45]} h6 {[%emt 0:02:57]} 45. h5 {[%emt 0:00:07]} Rd8 {[%emt 0:02:25]} 46. d7 {[%emt 0:00:05]} Kf2 {[%emt 0:00:07]} 47. Kc5 {[%emt 0:00:11]} Ke2 {[%emt 0:00:04]} 48. Rd6 {[%emt 0:00:14]} Kxf3 {[%emt 0:00:05]} 49. Rxf6+ {[%emt 0:00:13]} Kxe4 {[%emt 0:00:06]} 50. Kc6 {[%emt 0:00:07]} Kd4 {[%emt 0:00:05]} 51. Kc7 {[%emt 0:00:03]} Rxd7+ {[%emt 0:00:16]} 52. Kxd7 {[%emt 0:00:04]} e4 {[%emt 0:00:03]} 53. Rxf7 {[%emt 0:00:03]} e3 {[%emt 0:00:07]} 54. Re7 {[%emt 0:00:08]} Kd3 {[%emt 0:00:09]} 55. g5 {[%emt 0:00:21]} hxg5 {[%emt 0:00:14]} 56. h6 {[%emt 0:00:02]} g4 {[%emt 0:00:03]} 57. h7 {[%emt 0:00:04]} g3 {[%emt 0:00:02]} 58. h8=Q {[%emt 0:00:04]} g2 {[%emt 0:00:04]} 59. Qg7 {[%emt 0:00:09]} e2 {[%emt 0:00:04]} 60. Qxg2 {[%emt 0:00:07]} e1=Q {[%emt 0:00:07]} 61. Rxe1 {[%emt 0:00:15]} Kd4 {[%emt 0:00:04]} 62. Qd2+ {[%emt 0:00:06]} Kc4 {[%emt 0:00:03]} 63. Rc1+ {[%emt 0:00:05]} Kb3 {[%emt 0:00:03]} 64. Qc2+ {[%emt 0:00:04]} Ka3 {[%emt 0:00:04]} 65. Qc3+ {[%emt 0:00:09]} Ka4 {[%emt 0:00:07]} 66. Qb2 {[%emt 0:00:07]} Ka5 {[%emt 0:00:04]} 67. Ra1# {[%emt 0:00:03]} 1-0